[Event "Live Chess"]
[Site "Chess.com"]
[Date "2023.05.21"]
[Round "-"]
[White "hturner40"]
[Black "JoshMcK"]
[Result "1-0"]
[WhiteElo "1779"]
[BlackElo "1563"]
[TimeControl "300"]
[EndTime "5:58:54 PDT"]
[Termination "hturner40 won by resignation"]

1. Nf3 {[%clk 0:04:56.1]} 1... Nf6 {[%clk 0:04:57.7]} 2. g3 {[%clk 0:04:54.6]}
2... g6 {[%clk 0:04:55.7]} 3. Bg2 {[%clk 0:04:53.5]} 3... Bg7 {[%clk 0:04:54.5]}
4. O-O {[%clk 0:04:53.1]} 4... O-O {[%clk 0:04:53.6]} 5. d4 {[%clk 0:04:51.5]}
5... d5 {[%clk 0:04:52.5]} 6. c4 {[%clk 0:04:50.4]} 6... dxc4 {[%clk 0:04:50.3]}
7. Na3 {[%clk 0:04:49.3]} 7... Nc6 {[%clk 0:04:48.6]} 8. Nxc4 {[%clk 0:04:46.3]}
8... Be6 {[%clk 0:04:46.8]} 9. Nce5 {[%clk 0:04:29.7]} 9... Nxe5 {[%clk
0:04:41.9]} 10. Nxe5 {[%clk 0:04:25.3]} 10... Ng4 {[%clk 0:04:36.8]} 11. Bxb7
{[%clk 0:03:53.5]} 11... Rb8 {[%clk 0:04:32.6]} 12. Nc6 {[%clk 0:02:56.5]} 12...
Qd7 {[%clk 0:04:19.8]} 13. Nxb8 {[%clk 0:02:54.9]} 13... Rxb8 {[%clk 0:04:18]}
14. Bf3 {[%clk 0:02:49.4]} 14... Qxd4 {[%clk 0:04:13.9]} 15. e3 {[%clk
0:02:47.4]} 15... Qxd1 {[%clk 0:04:11.8]} 16. Rxd1 {[%clk 0:02:45.4]} 16... Ne5
{[%clk 0:04:11]} 17. Be2 {[%clk 0:02:42.3]} 17... Bg4 {[%clk 0:04:06]} 18. Bxg4
{[%clk 0:02:34.2]} 18... Nxg4 {[%clk 0:04:05.9]} 19. Rb1 {[%clk 0:02:28.2]}
19... Ne5 {[%clk 0:03:57.7]} 20. f4 {[%clk 0:02:16.3]} 20... Nc4 {[%clk
0:03:52.2]} 21. b3 {[%clk 0:02:14.7]} 21... Nd6 {[%clk 0:03:49.4]} 22. Ba3
{[%clk 0:02:07.2]} 22... a5 {[%clk 0:03:39.7]} 23. Bxd6 {[%clk 0:02:03.4]} 23...
cxd6 {[%clk 0:03:35.9]} 24. Rd5 {[%clk 0:01:54.7]} 24... Bc3 {[%clk 0:03:28.8]}
25. Rc1 {[%clk 0:01:46.7]} 25... Bg7 {[%clk 0:03:24.5]} 26. Rxa5 {[%clk
0:01:41.1]} 26... Bb2 {[%clk 0:03:17.4]} 27. Rc7 {[%clk 0:01:36.9]} 27... Bf6
{[%clk 0:03:10]} 28. Rca7 {[%clk 0:01:23.2]} 28... h5 {[%clk 0:03:04.7]} 29. Ra8
{[%clk 0:01:19.3]} 29... Rxa8 {[%clk 0:03:03.2]} 30. Rxa8+ {[%clk 0:01:18.1]}
30... Kg7 {[%clk 0:03:03.1]} 31. a4 {[%clk 0:01:14.8]} 31... Bc3 {[%clk
0:03:01.8]} 32. a5 {[%clk 0:01:13.7]} 32... Bb4 {[%clk 0:02:59.9]} 33. a6 {[%clk
0:01:12.2]} 33... Bc5 {[%clk 0:02:59.8]} 34. a7 {[%clk 0:01:09.8]} 34... Kf6
{[%clk 0:02:58.4]} 35. Kf2 {[%clk 0:00:54.2]} 35... Kf5 {[%clk 0:02:56.2]} 36.
Kf3 {[%clk 0:00:51.3]} 36... e6 {[%clk 0:02:50.1]} 37. e4+ {[%clk 0:00:49.2]}
37... Kf6 {[%clk 0:02:48.2]} 38. Ke2 {[%clk 0:00:46.9]} 38... e5 {[%clk
0:02:44.5]} 39. Kd3 {[%clk 0:00:44.3]} 39... exf4 {[%clk 0:02:38.8]} 40. gxf4
{[%clk 0:00:42.5]} 40... h4 {[%clk 0:02:30.9]} 41. Kc4 {[%clk 0:00:40.6]} 41...
h3 {[%clk 0:02:28.8]} 42. e5+ {[%clk 0:00:39]} 42... dxe5 {[%clk 0:02:27.4]} 43.
Kxc5 {[%clk 0:00:36.8]} 1-0

[Event "Live Chess"]
[Site "Chess.com"]
[Date "2023.05.21"]
[Round "-"]
[White "LodeshChess"]
[Black "ViktorTheCoolBoy"]
[Result "0-1"]
[WhiteElo "1175"]
[BlackElo "2461"]
[TimeControl "300"]
[EndTime "5:59:02 PDT"]
[Termination "ViktorTheCoolBoy won by resignation"]

1. e4 {[%clk 0:04:55.3]} 1... e5 {[%clk 0:04:58.6]} 2. Nf3 {[%clk 0:04:54]} 2...
Nc6 {[%clk 0:04:57.5]} 3. c3 {[%clk 0:04:53.7]} 3... Nf6 {[%clk 0:04:56.3]} 4.
d4 {[%clk 0:04:53.4]} 4... Nxe4 {[%clk 0:04:47.9]} 5. d5 {[%clk 0:04:52.6]} 5...
Ne7 {[%clk 0:04:47.3]} 6. Nxe5 {[%clk 0:04:51]} 6... Nf6 {[%clk 0:04:46.8]} 7.
Bg5 {[%clk 0:04:44.1]} 7... d6 {[%clk 0:04:43.9]} 8. Bb5+ {[%clk 0:04:41.3]}
8... Nd7 {[%clk 0:04:42.1]} 9. Qf3 {[%clk 0:04:32.4]} 9... dxe5 {[%clk
0:04:38.8]} 10. O-O {[%clk 0:04:10.1]} 10... a6 {[%clk 0:04:31.6]} 11. Bxd7+
{[%clk 0:04:01.9]} 11... Bxd7 {[%clk 0:04:29.6]} 12. Re1 {[%clk 0:04:01.4]}
12... f6 {[%clk 0:04:28.6]} 13. Bh4 {[%clk 0:03:48.6]} 13... Ng6 {[%clk
0:04:26.5]} 14. Bg3 {[%clk 0:03:45.6]} 14... Bd6 {[%clk 0:04:25.4]} 15. Qe4
{[%clk 0:03:36.5]} 15... O-O {[%clk 0:04:23.4]} 16. c4 {[%clk 0:03:34.1]} 16...
f5 {[%clk 0:04:22.7]} 17. Qe2 {[%clk 0:03:28]} 17... f4 {[%clk 0:04:21.7]} 18.
Bxf4 {[%clk 0:03:20.5]} 18... Nxf4 {[%clk 0:04:19.1]} 19. Qf3 {[%clk 0:03:15.4]}
19... Nh3+ {[%clk 0:04:17.2]} 20. Kh1 {[%clk 0:03:03.7]} 20... Rxf3 {[%clk
0:04:15.3]} 0-1

[Event "Live Chess"]
[Site "Chess.com"]
[Date "2023.05.21"]
[Round "-"]
[White "MartinWalker4"]
[Black "GEMdzq"]
[Result "0-1"]
[WhiteElo "2044"]
[BlackElo "2263"]
[TimeControl "300"]
[EndTime "5:59:03 PDT"]
[Termination "GEMdzq won by resignation"]

1. e4 {[%clk 0:04:56.1]} 1... d6 {[%clk 0:04:57.6]} 2. d4 {[%clk 0:04:54.1]}
2... Nf6 {[%clk 0:04:57]} 3. Nc3 {[%clk 0:04:52.6]} 3... g6 {[%clk 0:04:56.6]}
4. f4 {[%clk 0:04:51.4]} 4... Bg7 {[%clk 0:04:56.1]} 5. Nf3 {[%clk 0:04:50.2]}
5... O-O {[%clk 0:04:54.5]} 6. e5 {[%clk 0:04:48.7]} 6... Nfd7 {[%clk
0:04:49.3]} 7. Be3 {[%clk 0:04:47.2]} 7... c5 {[%clk 0:04:47.4]} 8. dxc5 {[%clk
0:04:44.7]} 8... dxe5 {[%clk 0:04:46.2]} 9. fxe5 {[%clk 0:04:36.4]} 9... Nxe5
{[%clk 0:04:43.5]} 10. Be2 {[%clk 0:04:34.9]} 10... Ng4 {[%clk 0:04:34.9]} 11.
Qxd8 {[%clk 0:04:21.2]} 11... Rxd8 {[%clk 0:04:34.8]} 12. Bg1 {[%clk 0:04:01.5]}
12... Nc6 {[%clk 0:04:32.8]} 13. h3 {[%clk 0:03:59.5]} 13... Nge5 {[%clk
0:04:27]} 14. Rd1 {[%clk 0:03:48.5]} 14... Be6 {[%clk 0:04:24.2]} 15. a3 {[%clk
0:03:28.7]} 15... Nc4 {[%clk 0:04:13.3]} 16. Bxc4 {[%clk 0:03:12]} 16... Bxc4
{[%clk 0:04:12.3]} 17. Be3 {[%clk 0:03:07]} 17... h6 {[%clk 0:03:56.9]} 18. Kf2
{[%clk 0:03:04.6]} 18... f5 {[%clk 0:03:51.7]} 19. g4 {[%clk 0:02:52.4]} 19...
e5 {[%clk 0:03:27.2]} 20. b3 {[%clk 0:02:08.2]} 20... Bf7 {[%clk 0:03:12.8]} 21.
gxf5 {[%clk 0:01:56.4]} 21... gxf5 {[%clk 0:03:11.8]} 22. Nh4 {[%clk 0:01:51.5]}
22... f4 {[%clk 0:02:52.9]} 23. Bc1 {[%clk 0:01:46.9]} 23... Nd4 {[%clk
0:02:51.5]} 24. Bb2 {[%clk 0:01:40]} 24... Bh5 {[%clk 0:02:48.2]} 25. Rd2 {[%clk
0:01:32.8]} 25... Bf6 {[%clk 0:02:42.6]} 26. Ng2 {[%clk 0:01:15.6]} 26... f3
{[%clk 0:02:35.3]} 27. Ne3 {[%clk 0:01:02.4]} 27... Bh4+ {[%clk 0:02:34.3]} 28.
Kf1 {[%clk 0:00:59.5]} 28... Ne2 {[%clk 0:02:22.5]} 29. Rxd8+ {[%clk 0:00:29.9]}
29... Rxd8 {[%clk 0:02:22.4]} 30. Ne4 {[%clk 0:00:26.6]} 30... Bg6 {[%clk
0:01:48.2]} 0-1

[Event "Live Chess"]
[Site "Chess.com"]
[Date "2023.05.21"]
[Round "-"]
[White "Tiltador"]
[Black "Mugzwang"]
[Result "0-1"]
[WhiteElo "845"]
[BlackElo "1560"]
[TimeControl "300"]
[EndTime "5:59:05 PDT"]
[Termination "Mugzwang won by resignation"]

1. e4 {[%clk 0:04:57.2]} 1... c5 {[%clk 0:04:57.8]} 2. Nf3 {[%clk 0:04:55.9]}
2... Nc6 {[%clk 0:04:56.6]} 3. d3 {[%clk 0:04:54.9]} 3... d6 {[%clk 0:04:51.2]}
4. g3 {[%clk 0:04:53.8]} 4... Bg4 {[%clk 0:04:49.2]} 5. Be2 {[%clk 0:04:51.8]}
5... Nf6 {[%clk 0:04:47.7]} 6. O-O {[%clk 0:04:50.5]} 6... g6 {[%clk 0:04:42.5]}
7. Nh4 {[%clk 0:04:49.1]} 7... Bxe2 {[%clk 0:04:40.5]} 8. Qxe2 {[%clk
0:04:47.1]} 8... Nd4 {[%clk 0:04:38.3]} 9. Nc3 {[%clk 0:04:43.6]} 9... Nxe2+
{[%clk 0:04:34.5]} 10. Nxe2 {[%clk 0:04:42.4]} 10... Bg7 {[%clk 0:04:32.9]} 11.
Nf4 {[%clk 0:04:40.5]} 11... O-O {[%clk 0:04:27.2]} 12. Nd5 {[%clk 0:04:35.1]}
12... Nxd5 {[%clk 0:04:25.5]} 13. exd5 {[%clk 0:04:33.6]} 13... Qb6 {[%clk
0:04:22.8]} 14. b3 {[%clk 0:04:29.5]} 14... Bxa1 {[%clk 0:04:20.6]} 0-1

[Event "Live Chess"]
[Site "Chess.com"]
[Date "2023.05.21"]
[Round "-"]
[White "TheSmoulderingMaster"]
[Black "mattihelenius2"]
[Result "1-0"]
[WhiteElo "1640"]
[BlackElo "491"]
[TimeControl "300"]
[EndTime "5:59:16 PDT"]
[Termination "TheSmoulderingMaster won by resignation"]

1. e4 {[%clk 0:04:57.8]} 1... e5 {[%clk 0:04:58.7]} 2. Nf3 {[%clk 0:04:55]} 2...
d5 {[%clk 0:04:55.6]} 3. Nxe5 {[%clk 0:04:53.1]} 3... Nf6 {[%clk 0:04:53.2]} 4.
d4 {[%clk 0:04:51.2]} 4... dxe4 {[%clk 0:04:50.9]} 5. Bc4 {[%clk 0:04:49.1]}
5... Qxd4 {[%clk 0:04:49.4]} 6. Qxd4 {[%clk 0:04:46]} 6... Nc6 {[%clk
0:04:48.7]} 7. Bxf7+ {[%clk 0:04:42.6]} 7... Ke7 {[%clk 0:04:41.4]} 8. Nxc6+
{[%clk 0:04:40.3]} 8... bxc6 {[%clk 0:04:40]} 9. Bb3 {[%clk 0:04:37.2]} 9... Be6
{[%clk 0:04:38.3]} 10. Qe5 {[%clk 0:04:34.6]} 10... Nd7 {[%clk 0:04:35.7]} 11.
Qxe6+ {[%clk 0:04:33]} 11... Kd8 {[%clk 0:04:34.4]} 12. O-O {[%clk 0:04:30.6]}
1-0

[Event "Live Chess"]
[Site "Chess.com"]
[Date "2023.05.21"]
[Round "-"]
[White "LiamBellwood"]
[Black "MovebyMove"]
[Result "0-1"]
[WhiteElo "1922"]
[BlackElo "2479"]
[TimeControl "300"]
[EndTime "5:59:20 PDT"]
[Termination "MovebyMove won by checkmate"]

1. d4 {[%clk 0:04:59]} 1... d5 {[%clk 0:04:58.1]} 2. Nc3 {[%clk 0:04:58.5]} 2...
Nf6 {[%clk 0:04:55]} 3. Bf4 {[%clk 0:04:58.1]} 3... c5 {[%clk 0:04:52.7]} 4. e4
{[%clk 0:04:57.3]} 4... Nxe4 {[%clk 0:04:50.5]} 5. Nxe4 {[%clk 0:04:56.6]} 5...
dxe4 {[%clk 0:04:49.5]} 6. dxc5 {[%clk 0:04:56.5]} 6... Qa5+ {[%clk 0:04:47.2]}
7. c3 {[%clk 0:04:55.8]} 7... Qxc5 {[%clk 0:04:43.6]} 8. Qa4+ {[%clk 0:04:55.4]}
8... Nc6 {[%clk 0:04:42.6]} 9. Qxe4 {[%clk 0:04:55.3]} 9... g6 {[%clk
0:04:41.5]} 10. Be3 {[%clk 0:04:53.2]} 10... Qa5 {[%clk 0:04:26.9]} 11. Nf3
{[%clk 0:04:49.2]} 11... Bg7 {[%clk 0:04:22.6]} 12. Bc4 {[%clk 0:04:41.3]} 12...
Bf5 {[%clk 0:04:17.7]} 13. Qd5 {[%clk 0:04:35.4]} 13... O-O {[%clk 0:04:01.6]}
14. O-O {[%clk 0:04:09.9]} 14... Qc7 {[%clk 0:03:56.9]} 15. Bb5 {[%clk
0:03:48.6]} 15... Ne5 {[%clk 0:03:39.8]} 16. Nxe5 {[%clk 0:03:36.4]} 16... Bxe5
{[%clk 0:03:37.3]} 17. f4 {[%clk 0:03:06.8]} 17... Bd6 {[%clk 0:03:27.9]} 18.
Rad1 {[%clk 0:03:01.2]} 18... a6 {[%clk 0:03:21.4]} 19. Be2 {[%clk 0:02:55.9]}
19... Rad8 {[%clk 0:03:12.8]} 20. Qf3 {[%clk 0:02:48.8]} 20... Bc5 {[%clk
0:02:54.5]} 21. Bxc5 {[%clk 0:02:41]} 21... Qxc5+ {[%clk 0:02:53.2]} 22. Kh1
{[%clk 0:02:40.5]} 22... Qb6 {[%clk 0:02:36.6]} 23. b3 {[%clk 0:02:31.6]} 23...
Rd6 {[%clk 0:02:16.2]} 24. Rxd6 {[%clk 0:02:28.1]} 24... exd6 {[%clk 0:02:05]}
25. Bc4 {[%clk 0:02:23]} 25... Re8 {[%clk 0:02:01.8]} 26. Qd1 {[%clk 0:01:40.8]}
26... Be4 {[%clk 0:01:41.7]} 27. Qg4 {[%clk 0:01:22.4]} 27... d5 {[%clk
0:01:31.3]} 28. Be2 {[%clk 0:01:16.6]} 28... Qe3 {[%clk 0:01:25.4]} 29. Qd7
{[%clk 0:00:32.8]} 29... Bxg2+ {[%clk 0:01:09.5]} 30. Kxg2 {[%clk 0:00:32.2]}
30... Qxe2+ {[%clk 0:01:08.9]} 31. Rf2 {[%clk 0:00:31.7]} 31... Qe4+ {[%clk
0:01:07.8]} 32. Kg1 {[%clk 0:00:27.1]} 32... b5 {[%clk 0:01:01.3]} 33. f5 {[%clk
0:00:26.3]} 33... gxf5 {[%clk 0:00:49.1]} 34. Qxf5 {[%clk 0:00:17.8]} 34... Qxf5
{[%clk 0:00:43.5]} 35. Rxf5 {[%clk 0:00:17.7]} 35... Re2 {[%clk 0:00:41.4]} 36.
Rxd5 {[%clk 0:00:16.3]} 36... Rxa2 {[%clk 0:00:39.3]} 37. Rc5 {[%clk 0:00:15.8]}
37... Kg7 {[%clk 0:00:37.7]} 38. Rc6 {[%clk 0:00:15.2]} 38... f6 {[%clk
0:00:35.3]} 39. b4 {[%clk 0:00:14.5]} 39... Kg6 {[%clk 0:00:34.1]} 40. Rc5
{[%clk 0:00:13.3]} 40... f5 {[%clk 0:00:32.6]} 41. Rc6+ {[%clk 0:00:12.8]} 41...
Kg5 {[%clk 0:00:31.8]} 42. Rc5 {[%clk 0:00:12.7]} 42... h5 {[%clk 0:00:29.9]}
43. Rd5 {[%clk 0:00:12.1]} 43... h4 {[%clk 0:00:28.6]} 44. Rd4 {[%clk
0:00:11.5]} 44... h3 {[%clk 0:00:26.2]} 45. Rd3 {[%clk 0:00:11]} 45... Kg4
{[%clk 0:00:24.6]} 46. Rd4+ {[%clk 0:00:10.3]} 46... f4 {[%clk 0:00:23.3]} 47.
Rd3 {[%clk 0:00:09]} 47... Rg2+ {[%clk 0:00:21.8]} 48. Kh1 {[%clk 0:00:08.2]}
48... Re2 {[%clk 0:00:17.3]} 49. Rd4 {[%clk 0:00:06.4]} 49... Re1# {[%clk
0:00:15.8]} 0-1

[Event "Live Chess"]
[Site "Chess.com"]
[Date "2023.05.21"]
[Round "-"]
[White "Chesscoach_Golichenko"]
[Black "Pablo_dmp"]
[Result "1-0"]
[WhiteElo "2620"]
[BlackElo "1875"]
[TimeControl "300"]
[EndTime "5:59:26 PDT"]
[Termination "Chesscoach_Golichenko won by resignation"]

1. d4 {[%clk 0:04:57.5]} 1... Nf6 {[%clk 0:04:58.7]} 2. c4 {[%clk 0:04:56.1]}
2... e6 {[%clk 0:04:58.3]} 3. Nc3 {[%clk 0:04:55]} 3... Bb4 {[%clk 0:04:58]} 4.
Qc2 {[%clk 0:04:52.9]} 4... O-O {[%clk 0:04:56.3]} 5. e4 {[%clk 0:04:51.5]} 5...
d5 {[%clk 0:04:52.8]} 6. e5 {[%clk 0:04:49.5]} 6... Ne4 {[%clk 0:04:50.7]} 7.
Bd3 {[%clk 0:04:48.7]} 7... c5 {[%clk 0:04:46.1]} 8. a3 {[%clk 0:04:41.3]} 8...
Bxc3+ {[%clk 0:04:24.1]} 9. bxc3 {[%clk 0:04:38]} 9... f5 {[%clk 0:04:22.9]} 10.
exf6 {[%clk 0:04:33.6]} 10... Nxf6 {[%clk 0:04:21.8]} 11. Nf3 {[%clk 0:04:28.7]}
11... Nc6 {[%clk 0:04:10.6]} 12. cxd5 {[%clk 0:04:25.3]} 12... exd5 {[%clk
0:04:08.8]} 13. O-O {[%clk 0:04:20.9]} 13... Bg4 {[%clk 0:04:04.4]} 14. Ne5
{[%clk 0:04:08.6]} 14... Bh5 {[%clk 0:03:58.6]} 15. Bg5 {[%clk 0:04:00.3]} 15...
cxd4 {[%clk 0:03:54.8]} 16. Bxh7+ {[%clk 0:03:42.9]} 16... Kh8 {[%clk 0:03:49]}
17. Nxc6 {[%clk 0:03:34.5]} 17... bxc6 {[%clk 0:03:45.5]} 18. cxd4 {[%clk
0:03:32.2]} 18... Qb6 {[%clk 0:03:37.1]} 19. Bg6 {[%clk 0:02:54.8]} 19... Qxd4
{[%clk 0:03:25]} 20. Bxh5 {[%clk 0:02:47.9]} 20... Nxh5 {[%clk 0:03:24.9]} 21.
Qxc6 {[%clk 0:02:46.5]} 21... Rac8 {[%clk 0:02:37.2]} 22. Qg6 {[%clk 0:02:34.4]}
22... Nf4 {[%clk 0:02:33.4]} 23. Bxf4 {[%clk 0:02:10.7]} 23... Qxf4 {[%clk
0:02:29.7]} 24. Qh5+ {[%clk 0:02:08.3]} 24... Kg8 {[%clk 0:02:23.9]} 25. Qxd5+
{[%clk 0:02:06.1]} 25... Kh8 {[%clk 0:02:21.1]} 26. g3 {[%clk 0:02:04.3]} 26...
Qf3 {[%clk 0:02:05]} 27. Rad1 {[%clk 0:02:00]} 27... Qxa3 {[%clk 0:01:57.7]} 28.
Qh5+ {[%clk 0:01:56.9]} 28... Kg8 {[%clk 0:01:56.3]} 29. Rd7 {[%clk 0:01:54.2]}
29... Rc5 {[%clk 0:01:53.4]} 30. Qg6 {[%clk 0:01:43.1]} 30... Qc3 {[%clk
0:01:47.3]} 31. Rxa7 {[%clk 0:01:33.2]} 31... Rcf5 {[%clk 0:01:43.8]} 32. Qe6+
{[%clk 0:01:22]} 32... Kh8 {[%clk 0:01:39.9]} 33. Ra4 {[%clk 0:01:18.1]} 33...
g5 {[%clk 0:01:20.7]} 34. Qh6+ {[%clk 0:01:09.9]} 34... Kg8 {[%clk 0:01:19.2]}
35. Ra7 {[%clk 0:01:03.1]} 35... R5f7 {[%clk 0:01:12.5]} 36. Qxg5+ {[%clk
0:01:00.5]} 36... Kh8 {[%clk 0:01:09.1]} 37. Rxf7 {[%clk 0:00:58.4]} 37... Rxf7
{[%clk 0:01:09]} 38. Qe3 {[%clk 0:00:54.9]} 38... Qc7 {[%clk 0:00:56.2]} 39. h4
{[%clk 0:00:52.7]} 39... Kh7 {[%clk 0:00:53.4]} 40. Re1 {[%clk 0:00:49.6]} 1-0

[Event "Live Chess"]
[Site "Chess.com"]
[Date "2023.05.21"]
[Round "-"]
[White "Berdgross"]
[Black "toxic_rabbit"]
[Result "0-1"]
[WhiteElo "697"]
[BlackElo "1961"]
[TimeControl "300"]
[EndTime "5:59:29 PDT"]
[Termination "toxic_rabbit won by resignation"]

1. e4 {[%clk 0:04:59.1]} 1... e6 {[%clk 0:04:59.7]} 2. d4 {[%clk 0:04:58.3]}
2... d5 {[%clk 0:04:59.3]} 3. e5 {[%clk 0:04:57.2]} 3... c5 {[%clk 0:04:58.3]}
4. Nf3 {[%clk 0:04:52.4]} 4... Nc6 {[%clk 0:04:57.9]} 5. Bb5 {[%clk 0:04:48.7]}
5... Qb6 {[%clk 0:04:55.5]} 6. Bxc6+ {[%clk 0:04:47]} 6... bxc6 {[%clk
0:04:55.4]} 7. O-O {[%clk 0:04:43.9]} 7... cxd4 {[%clk 0:04:54.5]} 8. Nxd4
{[%clk 0:04:41.8]} 8... c5 {[%clk 0:04:54.4]} 9. Nb3 {[%clk 0:04:31.6]} 9... Ba6
{[%clk 0:04:52.9]} 10. Re1 {[%clk 0:04:29.4]} 10... Ne7 {[%clk 0:04:52.3]} 11.
Be3 {[%clk 0:04:25]} 11... Nc6 {[%clk 0:04:48.7]} 12. Bxc5 {[%clk 0:04:18.9]}
12... Bxc5 {[%clk 0:04:47]} 13. Nxc5 {[%clk 0:04:17.2]} 13... Qxc5 {[%clk
0:04:46.9]} 14. Nc3 {[%clk 0:04:07.2]} 14... O-O {[%clk 0:04:44.9]} 15. a3
{[%clk 0:03:59.3]} 15... Rab8 {[%clk 0:04:43.3]} 16. b4 {[%clk 0:03:58.2]} 16...
Qxc3 {[%clk 0:04:42.1]} 17. Re3 {[%clk 0:03:51.2]} 17... Qd4 {[%clk 0:04:34.5]}
18. Qxd4 {[%clk 0:03:46.5]} 18... Nxd4 {[%clk 0:04:33.7]} 19. c3 {[%clk
0:03:36.4]} 19... Nc2 {[%clk 0:04:32.3]} 0-1

[Event "Live Chess"]
[Site "Chess.com"]
[Date "2023.05.21"]
[Round "-"]
[White "NotHarryV"]
[Black "Hacker_2009"]
[Result "1-0"]
[WhiteElo "1520"]
[BlackElo "1923"]
[TimeControl "300"]
[EndTime "5:59:39 PDT"]
[Termination "NotHarryV won by resignation"]

1. d4 {[%clk 0:04:59]} 1... Nf6 {[%clk 0:04:57.4]} 2. c4 {[%clk 0:04:57.7]} 2...
e6 {[%clk 0:04:55.7]} 3. Nf3 {[%clk 0:04:55.1]} 3... d5 {[%clk 0:04:55.1]} 4. g3
{[%clk 0:04:52]} 4... Be7 {[%clk 0:04:54.6]} 5. Bg2 {[%clk 0:04:51.4]} 5... O-O
{[%clk 0:04:54.2]} 6. O-O {[%clk 0:04:50.7]} 6... b6 {[%clk 0:04:53.9]} 7. Bg5
{[%clk 0:04:47.3]} 7... Bb7 {[%clk 0:04:53.1]} 8. Ne5 {[%clk 0:04:46.2]} 8... c5
{[%clk 0:04:47.9]} 9. cxd5 {[%clk 0:04:43.4]} 9... Nxd5 {[%clk 0:04:45.9]} 10.
Bxe7 {[%clk 0:04:42.4]} 10... Qxe7 {[%clk 0:04:44.7]} 11. dxc5 {[%clk
0:04:19.7]} 11... Qxc5 {[%clk 0:04:33.1]} 12. Qc1 {[%clk 0:04:06.6]} 12... Qxc1
{[%clk 0:04:23.5]} 13. Rxc1 {[%clk 0:04:05]} 13... Na6 {[%clk 0:04:22.5]} 14.
Nc3 {[%clk 0:03:34.6]} 14... Nxc3 {[%clk 0:04:01.8]} 15. Rxc3 {[%clk 0:03:34.5]}
15... Bxg2 {[%clk 0:03:59.6]} 16. Kxg2 {[%clk 0:03:32.9]} 16... Nc5 {[%clk
0:03:49.2]} 17. Rd1 {[%clk 0:03:22.8]} 17... Rfd8 {[%clk 0:03:46.2]} 18. Rxd8+
{[%clk 0:03:16.6]} 18... Rxd8 {[%clk 0:03:43.2]} 19. Nd3 {[%clk 0:03:12.2]}
19... Nxd3 {[%clk 0:03:34.3]} 20. Rxd3 {[%clk 0:03:10.5]} 20... Rxd3 {[%clk
0:03:31.3]} 21. exd3 {[%clk 0:03:10.4]} 21... Kf8 {[%clk 0:03:30.8]} 22. Kf3
{[%clk 0:03:09.9]} 22... Ke7 {[%clk 0:03:30.7]} 23. Ke4 {[%clk 0:03:09.4]} 23...
Kd6 {[%clk 0:03:30.4]} 24. Kd4 {[%clk 0:03:09]} 24... a6 {[%clk 0:03:28.4]} 25.
b4 {[%clk 0:02:56.9]} 25... b5 {[%clk 0:03:21.8]} 26. f4 {[%clk 0:02:51.1]}
26... h5 {[%clk 0:03:15.6]} 27. a3 {[%clk 0:02:41]} 27... f6 {[%clk 0:02:57.7]}
28. Ke4 {[%clk 0:02:27.5]} 28... f5+ {[%clk 0:02:43.9]} 29. Kd4 {[%clk
0:02:22.1]} 29... g6 {[%clk 0:02:29.1]} 30. h4 {[%clk 0:02:11]} 30... e5+ {[%clk
0:02:26.9]} 31. fxe5+ {[%clk 0:02:09.2]} 31... Ke6 {[%clk 0:02:26.2]} 32. Kc5
{[%clk 0:01:56.3]} 32... Kxe5 {[%clk 0:02:25.3]} 33. d4+ {[%clk 0:01:51.4]}
33... Ke6 {[%clk 0:02:18.9]} 34. Kc6 {[%clk 0:01:46.4]} 34... Ke7 {[%clk
0:02:12.2]} 35. d5 {[%clk 0:01:35.8]} 35... Kd8 {[%clk 0:02:08.8]} 36. Kd6
{[%clk 0:01:35]} 36... g5 {[%clk 0:02:06.3]} 37. hxg5 {[%clk 0:01:33.2]} 37...
h4 {[%clk 0:02:05]} 38. gxh4 {[%clk 0:01:24.6]} 38... f4 {[%clk 0:02:03.7]} 39.
g6 {[%clk 0:01:24.2]} 39... f3 {[%clk 0:02:03.1]} 40. g7 {[%clk 0:01:23.6]} 1-0

[Event "Live Chess"]
[Site "Chess.com"]
[Date "2023.05.21"]
[Round "-"]
[White "mliszewski"]
[Black "Ferrarifan27"]
[Result "0-1"]
[WhiteElo "1798"]
[BlackElo "2073"]
[TimeControl "300"]
[EndTime "5:59:52 PDT"]
[Termination "Ferrarifan27 won by resignation"]

1. d4 {[%clk 0:04:58.5]} 1... Nf6 {[%clk 0:04:58.7]} 2. Bg5 {[%clk 0:04:56.8]}
2... e6 {[%clk 0:04:57.1]} 3. Nd2 {[%clk 0:04:55.3]} 3... d5 {[%clk 0:04:55.4]}
4. e3 {[%clk 0:04:54]} 4... Be7 {[%clk 0:04:51.7]} 5. c3 {[%clk 0:04:53.1]} 5...
O-O {[%clk 0:04:48.9]} 6. Bd3 {[%clk 0:04:47.4]} 6... h6 {[%clk 0:04:46.5]} 7.
Bh4 {[%clk 0:04:46.5]} 7... Nbd7 {[%clk 0:04:41.1]} 8. f4 {[%clk 0:04:46.1]}
8... c5 {[%clk 0:04:36.1]} 9. Ngf3 {[%clk 0:04:45]} 9... c4 {[%clk 0:04:29.2]}
10. Bc2 {[%clk 0:04:43.5]} 10... b5 {[%clk 0:04:28.3]} 11. O-O {[%clk 0:04:42]}
11... a5 {[%clk 0:04:26.3]} 12. Ne5 {[%clk 0:04:40.9]} 12... Qb6 {[%clk
0:04:17.8]} 13. Ndf3 {[%clk 0:04:32.3]} 13... Re8 {[%clk 0:04:13.7]} 14. Nxd7
{[%clk 0:04:28.3]} 14... Nxd7 {[%clk 0:04:08.3]} 15. Ne5 {[%clk 0:04:28.1]}
15... Bxh4 {[%clk 0:04:05.5]} 16. Qh5 {[%clk 0:04:26]} 16... Nxe5 {[%clk
0:04:02.4]} 17. fxe5 {[%clk 0:04:21.2]} 17... Rf8 {[%clk 0:03:36.7]} 18. Qxh4
{[%clk 0:04:16.8]} 18... b4 {[%clk 0:03:35.7]} 19. Qg3 {[%clk 0:04:10]} 19...
bxc3 {[%clk 0:03:31.6]} 20. bxc3 {[%clk 0:04:09.1]} 20... Qb2 {[%clk 0:03:30.4]}
21. Rac1 {[%clk 0:03:56.8]} 21... Qxa2 {[%clk 0:03:24.4]} 22. Bb1 {[%clk
0:03:55.9]} 22... Qb2 {[%clk 0:03:11.6]} 23. Rc2 {[%clk 0:03:54]} 23... Qb6
{[%clk 0:03:07.2]} 24. Rf6 {[%clk 0:03:51.7]} 24... Qxb1+ {[%clk 0:02:59.2]} 25.
Kf2 {[%clk 0:03:44.8]} 25... Qxc2+ {[%clk 0:02:57]} 26. Kf3 {[%clk 0:03:44.5]}
26... a4 {[%clk 0:02:40.6]} 27. Rxh6 {[%clk 0:03:42.6]} 27... Qf5+ {[%clk
0:02:38.6]} 28. Ke2 {[%clk 0:03:40.4]} 28... a3 {[%clk 0:02:31.8]} 0-1